bitfinex/quotes_BTCUSD_20250410
["timestamp","ask_amount","ask_price","bid_price","bid_amount"]
[1744269169307,1.28948019,82121.0,82120.0,3.3e-07]
[1744269170805,1.50523401,82121.0,82120.0,3.3e-07]
[1744269171222,1.53385537,82121.0,82120.0,3.3e-07]
[1744269171790,1.54238988,82121.0,82120.0,3.3e-07]
[1744269171993,0.32876,82111.0,82110.0,1.3e-07]
[1744269172216,0.37568734,82111.0,82110.0,1.3e-07]
[1744269172416,0.39535928,82111.0,82110.0,1.3e-07]
[1744269172938,0.79535928,82111.0,82110.0,1.3e-07]
[1744269173261,0.79835928,82111.0,82110.0,1.3e-07]
[1744269173462,1.25762271,82111.0,82110.0,1.3e-07]
[1744269173597,1.25462271,82111.0,82110.0,1.3e-07]
[1744269173956,1.46162271,82111.0,82110.0,1.3e-07]
[1744269174309,1.34406889,82111.0,82110.0,1.3e-07]
[1744269176298,1.27105889,82111.0,82110.0,1.3e-07]
[1744269176502,1.39161271,82111.0,82110.0,1.3e-07]
[1744269181099,1.5120453,82111.0,82110.0,1.3e-07]
[1744269181321,1.43811271,82111.0,82110.0,1.3e-07]
[1744269181785,0.012181,82094.0,82080.0,0.0003368]
[1744269182006,0.58364,82088.0,82080.0,0.0003368]
[1744269182230,0.595822,82088.0,82080.0,0.0003368]
[1744269182431,1.00685801,82088.0,82080.0,0.0003368]
[1744269183931,1.12741183,82088.0,82087.0,6e-07]
[1744269184132,1.17641183,82088.0,82087.0,6e-07]
[1744269184944,1.37641183,82088.0,82087.0,6e-07]
[1744269185147,1.52209183,82088.0,82087.0,6e-07]
[1744269185932,1.40153801,82088.0,82087.0,6e-07]
[1744269186316,1.48746093,82088.0,82087.0,6e-07]
[1744269186448,1.48346093,82088.0,82087.0,6e-07]
[1744269187112,1.48846093,82088.0,82087.0,6e-07]
[1744269187970,1.43946093,82088.0,82087.0,6e-07]
[1744269189570,1.29878093,82088.0,82087.0,6e-07]
[1744269190401,0.94986801,82088.0,82087.0,6e-07]
[1744269190899,0.74986801,82088.0,82087.0,6e-07]
[1744269191083,1.08486801,82088.0,82087.0,6e-07]
[1744269191211,1.00685801,82088.0,82087.0,6e-07]
[1744269191615,0.66685801,82088.0,82087.0,6e-07]
[1744269191858,0.66685801,82088.0,82087.0,0.12055442]
[1744269192095,0.26685801,82088.0,82087.0,0.12055442]
[1744269192689,0.01103601,82088.0,82087.0,0.37637942]
[1744269193090,0.24363,82092.0,82088.0,0.28984]
[1744269193391,0.34,82098.0,82092.0,0.0492]
[1744269193620,0.24362,82095.0,82093.0,0.12055382]
[1744269193953,0.243614,82097.0,82093.0,0.12055382]
[1744269194187,0.25577,82105.0,82100.0,0.05868]
[1744269194374,0.01218,82101.0,82100.0,0.0465]
[1744269194574,0.255804,82094.0,82093.0,0.12055382]
[1744269195615,0.255804,82094.0,82093.0,0.12005382]
[1744269196828,0.01218,82101.0,82093.0,0.12005382]
[1744269196829,0.2,82103.0,82100.0,0.255781]
[1744269197012,0.243597,82103.0,82102.0,0.0456]
[1744269197752,0.25467086,82103.0,82102.0,0.0456]
[1744269197981,0.26684986,82103.0,82102.0,0.0456]
[1744269198203,0.012179,82102.0,82101.0,0.12055382]
[1744269198408,0.01218,82097.0,82091.0,0.06915141]
[1744269198606,0.01218,82097.0,82092.0,0.12055382]
[1744269198607,0.243626,82093.0,82092.0,0.12055382]
[1744269199017,0.255802,82095.0,82092.0,0.14320523]
[1744269199197,0.01110665,82093.0,82092.0,0.14320523]
[1744269199396,0.255805,82094.0,82092.0,0.14320523]
[1744269199557,0.26691365,82093.0,82092.0,0.12055382]
[1744269200164,0.26691365,82093.0,82092.0,0.14326097]
[1744269200553,0.01110665,82093.0,82092.0,0.14326097]
[1744269200728,0.25473265,82093.0,82092.0,0.14326097]
[1744269200955,0.01110665,82093.0,82092.0,0.38688997]
[1744269201173,0.01218,82098.0,82092.0,0.38688997]
[1744269201462,0.01218,82098.0,82093.0,0.02270715]
[1744269201762,0.24362,82095.0,82094.0,0.12055382]
[1744269202172,0.243617,82096.0,82094.0,0.14326097]
[1744269202369,0.25471681,82095.0,82094.0,0.14326097]
[1744269202513,0.01109681,82095.0,82094.0,0.14326097]
[1744269202914,0.243605,82100.0,82096.0,0.243614]
[1744269203138,0.243609,82099.0,82096.0,0.243614]
[1744269203342,0.243611,82098.0,82097.0,0.02270715]
[1744269204047,0.25470189,82098.0,82097.0,0.02270715]
[1744269204355,0.01109089,82098.0,82097.0,0.38687497]
[1744269204553,0.243602,82101.0,82097.0,0.38687497]
[1744269204759,0.01108762,82100.0,82098.0,0.12055382]
[1744269204964,0.243608,82099.0,82098.0,0.12055382]
[1744269205322,0.243601,82102.0,82099.0,0.243605]
[1744269205637,0.243601,82102.0,82097.0,0.01218]
[1744269205638,0.243603,82101.0,82100.0,0.12055382]
[1744269205833,0.01109745,82101.0,82100.0,0.14324631]
[1744269206029,0.01109745,82101.0,82100.0,0.44773131]
[1744269206232,0.243589,82106.0,82103.0,0.243596]
[1744269206431,0.243589,82106.0,82104.0,0.12055382]
[1744269207077,0.243589,82106.0,82104.0,0.14324631]
[1744269207254,0.243589,82106.0,82104.0,0.12055382]
[1744269207408,0.24359,82105.0,82104.0,0.12055382]
[1744269208027,0.255769,82105.0,82104.0,0.12055382]
[1744269208486,0.255778,82102.0,82101.0,0.02269249]
[1744269208697,0.255791,82098.0,82097.0,0.02269249]
[1744269208910,0.255791,82098.0,82097.0,0.12055382]
[1744269209332,0.19202446,82120.0,82109.0,0.243577]
[1744269209544,0.19202446,82120.0,82103.0,0.255772]
[1744269209545,0.243585,82107.0,82103.0,0.255772]
[1744269209753,0.243585,82107.0,82104.0,0.12055382]
[1744269209964,0.243575,82110.0,82104.0,0.13273282]
[1744269210155,0.01230534,82111.0,82104.0,0.12055382]
[1744269210156,0.243586,82107.0,82104.0,0.12055382]
[1744269210361,0.24359,82105.0,82104.0,0.12055382]
[1744269212081,0.255772,82104.0,82103.0,0.02269249]
[1744269212417,0.01218,82100.0,82089.0,0.02269249]
[1744269212541,0.255801,82095.0,82091.0,0.24363]
[1744269212743,0.2669754,82095.0,82094.0,0.16765382]
[1744269212950,0.2669754,82095.0,82094.0,0.12055382]
[1744269213410,0.2547944,82095.0,82094.0,0.12055382]
[1744269213643,0.2669754,82095.0,82094.0,0.12055382]
[1744269216433,0.2669754,82095.0,82094.0,0.14324631]
[1744269216840,0.2669754,82095.0,82094.0,0.12055382]
[1744269218495,0.2669754,82095.0,82094.0,0.14327597]
[1744269219876,0.2669754,82095.0,82094.0,0.02272215]
[1744269220446,0.255819,82089.0,82088.0,0.4132942]
[1744269220696,0.24364,82088.0,82087.0,6e-07]
[1744269220939,0.24364,82088.0,82087.0,0.12055442]
[1744269221067,0.25477987,82088.0,82087.0,0.12055442]
[1744269221698,0.26696187,82088.0,82087.0,0.12055442]
[1744269222759,0.26696187,82088.0,82087.0,6e-07]
[1744269223863,0.46696187,82088.0,82087.0,6e-07]
[1744269224570,0.86696187,82088.0,82087.0,6e-07]
[1744269224995,1.20696187,82088.0,82087.0,6e-07]
[1744269226101,1.27997187,82088.0,82087.0,6e-07]
[1744269226317,1.32517187,82088.0,82087.0,6e-07]
[1744269232824,1.27997187,82088.0,82087.0,6e-07]
[1744269235498,1.27997187,82088.0,82080.0,0.0002974]
[1744269235499,0.255844,82081.0,82080.0,0.0002974]
[1744269235705,0.668863,82078.0,82071.0,0.0043368]
[1744269236092,0.73726595,82078.0,82071.0,0.0043368]
[1744269236297,1.25781977,82078.0,82077.0,3.941e-05]
[1744269236864,1.45881977,82078.0,82077.0,0.00046477]
[1744269237816,0.668917,82061.0,82060.0,0.0003368]
[1744269238057,0.88277082,82061.0,82060.0,7.5e-07]
[1744269238302,0.668956,82048.0,82042.0,0.0001686]
[1744269238780,1.07970086,82048.0,82042.0,0.0001686]
[1744269239000,1.27970086,82048.0,82042.0,0.0001686]
[1744269240568,1.28892368,82048.0,82042.0,0.0001686]
[1744269241415,1.21591368,82048.0,82042.0,0.0001686]
[1744269244960,1.20669086,82048.0,82042.0,0.0001686]
[1744269245161,0.80669086,82048.0,82042.0,0.0001686]
[1744269245776,1.20669086,82048.0,82042.0,0.0001686]
[1744269245981,1.00669086,82048.0,82042.0,0.0001686]
[1744269247834,1.20669086,82048.0,82042.0,0.0001686]
[1744269249763,1.20669086,82048.0,82042.0,8e-07]
[1744269249764,0.255962,82043.0,82042.0,8e-07]
[1744269249964,0.243843,82020.0,82018.0,0.0056118]
[1744269250148,0.256037,82019.0,82018.0,0.0056946]
[1744269250484,0.26666658,82019.0,82018.0,0.0056946]
[1744269250891,0.60666658,82019.0,82018.0,0.0056946]
[1744269253043,0.61902558,82019.0,82018.0,0.0056946]
[1744269254146,1.01902558,82019.0,82018.0,0.0056946]
[1744269254954,1.21902558,82019.0,82018.0,0.0056946]
[1744269256170,1.26732558,82019.0,82018.0,0.0056946]
[1744269256692,1.21902558,82019.0,82018.0,0.0056946]
[1744269260820,1.01902558,82019.0,82018.0,0.0056946]
[1744269263034,0.02298858,82019.0,82018.0,0.3115346]
[1744269263214,0.02298858,82019.0,82018.0,0.18824042]
[1744269263215,0.01062958,82019.0,82018.0,0.18824042]
[1744269263423,0.24384,82021.0,82018.0,0.22284842]
[1744269263668,0.243845,82020.0,82019.0,0.12055382]
[1744269264431,0.256037,82020.0,82019.0,0.12055382]
[1744269270369,0.243835,82023.0,82019.0,0.12055382]
[1744269270569,0.243841,82021.0,82019.0,0.12055382]
[1744269270773,0.255976,82039.0,82031.0,0.01219]
[1744269270997,0.243804,82033.0,82029.0,0.243813]
[1744269271191,0.243809,82032.0,82030.0,0.12055382]
[1744269271521,0.32901,82031.0,82030.0,0.12055382]
[1744269271694,0.256,82031.0,82030.0,0.12055382]
[1744269272451,0.26333109,82031.0,82030.0,0.12055382]
[1744269273089,0.26333109,82031.0,82030.0,0.12039135]
[1744269273726,0.00733109,82031.0,82030.0,0.42379435]
[1744269273928,0.00733109,82031.0,82030.0,0.16779135]
[1744269274117,0.012188,82045.0,82035.0,0.058589]
[1744269274315,0.243786,82039.0,82036.0,0.12299151]
[1744269274532,0.243786,82039.0,82036.0,0.12055382]
[1744269274533,0.243792,82037.0,82036.0,0.12055382]
[1744269275003,0.27456976,82037.0,82036.0,0.12055382]
[1744269278292,0.01858876,82037.0,82036.0,0.12055382]
[1744269278498,0.26238076,82037.0,82036.0,0.12055382]
[1744269278842,0.27456976,82037.0,82036.0,0.12055382]
[1744269285126,0.01858876,82037.0,82036.0,0.36434882]
[1744269285373,0.00622058,82037.0,82036.0,0.36434882]
[1744269285597,0.00622058,82037.0,82036.0,0.37653782]
[1744269285729,0.012188,82043.0,82036.0,0.13274282]
[1744269285928,0.243777,82043.0,82037.0,0.012189]
[1744269286273,0.26820565,82044.0,82039.0,0.012189]
[1744269286477,0.012187,82048.0,82042.0,0.255965]
[1744269286741,0.243736,82056.0,82043.0,0.13274182]
[1744269286939,0.243718,82062.0,82058.0,0.243727]
[1744269287143,0.01199001,82060.0,82058.0,0.243727]
[1744269287283,0.34,82061.0,82058.0,0.243727]
[1744269287480,0.583723,82061.0,82058.0,0.243727]
[1744269287711,0.34,82059.0,82057.0,0.243732]
[1744269288108,0.583728,82059.0,82056.0,0.243735]
[1744269288307,0.583728,82059.0,82055.0,0.243735]
[1744269288308,0.34,82057.0,82055.0,0.243738]
[1744269288512,0.583728,82059.0,82056.0,0.243733]
[1744269288737,0.2677726,82060.0,82055.0,0.243738]
[1744269288934,0.34,82059.0,82056.0,0.243735]
[1744269289243,0.34,82057.0,82055.0,0.243738]
[1744269289828,0.34,82057.0,82056.0,0.255921]
[1744269290229,0.2,82070.0,82068.0,0.255884]
[1744269290412,0.34,82067.0,82064.0,0.243709]
[1744269290750,0.243701,82068.0,82064.0,0.243709]
[1744269290751,0.243701,82068.0,82065.0,0.243706]
[1744269291155,0.243709,82065.0,82062.0,0.12055382]
[1744269291355,0.243709,82065.0,82062.0,0.36426882]
[1744269291556,0.2559,82063.0,82062.0,0.12055382]
[1744269292160,0.243712,82064.0,82062.0,0.12055382]
[1744269292501,0.243715,82063.0,82062.0,0.12055382]
[1744269292977,0.26803305,82065.0,82062.0,0.12055382]
[1744269293402,0.25584805,82065.0,82062.0,0.12055382]
[1744269293578,0.01213905,82065.0,82063.0,0.243715]
[1744269293779,0.255893,82066.0,82063.0,0.243715]
[1744269294146,0.243709,82065.0,82062.0,0.12055382]
[1744269294345,0.255893,82066.0,82062.0,0.36426882]
[1744269294599,0.243706,82066.0,82062.0,0.36426882]
[1744269294900,0.243706,82066.0,82064.0,0.243712]
[1744269295125,0.243706,82066.0,82063.0,0.243715]
[1744269295327,0.0068161,82066.0,82062.0,0.12055382]
[1744269295505,0.012185,82067.0,82062.0,0.12055382]
[1744269295646,0.243706,82066.0,82063.0,0.243715]
[1744269296002,0.00682102,82065.0,82063.0,0.243715]
[1744269296165,0.25053102,82065.0,82062.0,0.36426982]
[1744269296367,0.00682102,82065.0,82062.0,0.36427082]
[1744269296774,0.00682102,82065.0,82064.0,0.243712]
[1744269296975,0.00682102,82065.0,82063.0,0.243715]
[1744269297513,0.00682102,82065.0,82064.0,0.243712]
[1744269297731,0.00682102,82065.0,82063.0,0.243715]
[1744269298023,0.00682102,82065.0,82064.0,0.243712]
[1744269298223,0.00682102,82065.0,82063.0,0.243715]
[1744269298420,0.00682102,82065.0,82064.0,0.243712]
[1744269298831,0.00682102,82065.0,82063.0,0.243715]
[1744269299004,0.00682102,82065.0,82064.0,0.37645082]
[1744269299409,0.01211665,82066.0,82065.0,0.302794]
[1744269299608,0.5403378,82074.0,82073.0,0.243685]
[1744269299981,0.3592226,82074.0,82073.0,0.243685]
[1744269300186,0.3592226,82074.0,82072.0,0.243687]
[1744269300414,0.3592226,82074.0,82072.0,0.243688]
[1744269300645,0.243686,82073.0,82070.0,0.243688]
[1744269300848,0.3592226,82074.0,82068.0,0.243697]
[1744269300849,0.6029046,82074.0,82068.0,0.243697]
[1744269301147,0.243693,82071.0,82069.0,0.12055382]
[1744269301355,0.01911085,82073.0,82069.0,0.12055382]
[1744269301356,0.24369,82072.0,82069.0,0.12055382]
[1744269301553,0.00694161,82070.0,82069.0,0.12055382]
[1744269301805,0.00694161,82070.0,82066.0,0.398165]
[1744269301806,0.255919,82057.0,82056.0,0.5555742]
[1744269301994,0.012186,82061.0,82056.0,0.5555742]
[1744269302206,0.25067464,82057.0,82056.0,0.5555742]
[1744269302405,0.255919,82057.0,82056.0,0.5555742]
[1744269302703,0.26280448,82057.0,82056.0,0.5555742]
[1744269303690,0.26280448,82057.0,82056.0,0.14228]
[1744269303932,0.00688548,82057.0,82056.0,0.14228]
[1744269304160,0.00688548,82057.0,82056.0,0.27501982]
[1744269304300,0.00688548,82057.0,82056.0,0.51875482]
[1744269304489,0.243733,82057.0,82056.0,0.26283382]
[1744269304697,0.00687264,82057.0,82056.0,0.26283382]
[1744269304920,0.255918,82058.0,82056.0,0.26283382]
[1744269305124,0.25060564,82057.0,82056.0,0.14228]
[1744269305323,0.25060564,82057.0,82045.0,0.060188]
[1744269305324,0.012188,82045.0,82044.0,0.14228]
[1744269305647,0.255956,82045.0,82044.0,0.26283382]
[1744269305856,0.26283348,82045.0,82044.0,0.26283382]
[1744269309590,0.255978,82038.0,82037.0,0.413377]
[1744269309790,0.243784,82040.0,82037.0,0.53393082]
[1744269309992,0.255978,82038.0,82037.0,0.53393082]
[1744269310195,0.595972,82040.0,82037.0,0.53393082]
[1744269310579,0.243789,82038.0,82037.0,0.53393082]
[1744269311466,0.316799,82038.0,82037.0,0.53393082]
[1744269311675,0.243789,82038.0,82037.0,0.53393082]
[1744269312132,0.255978,82038.0,82037.0,0.53393082]
[1744269313289,0.243789,82038.0,82037.0,0.53393082]
[1744269313503,0.255975,82039.0,82037.0,0.53393082]
[1744269313800,0.243789,82038.0,82037.0,0.53393082]
[1744269315270,0.012187,82049.0,82041.0,0.255963]
[1744269315471,0.243768,82045.0,82042.0,0.36432982]
[1744269315662,0.243768,82045.0,82042.0,0.12055382]
[1744269315856,0.243774,82044.0,82042.0,0.12055382]
[1744269316064,0.255956,82045.0,82042.0,0.12055382]
[1744269316301,0.243772,82044.0,82042.0,0.12055382]
[1744269316946,0.25591654,82044.0,82042.0,0.12055382]
[1744269317149,0.01214454,82044.0,82043.0,0.057488]
[1744269317352,0.243736,82056.0,82050.0,0.012187]
[1744269317353,0.255924,82056.0,82050.0,0.012187]
[1744269317555,0.255924,82056.0,82052.0,0.243745]
[1744269317763,0.2,82059.0,82058.0,0.255916]
[1744269318088,0.243699,82070.0,82058.0,0.255916]
[1744269318089,0.243704,82067.0,82063.0,0.243714]
[1744269318239,0.243706,82068.0,82058.0,0.12055382]
[1744269318240,0.012185,82063.0,82058.0,0.12055382]
[1744269318439,0.012185,82068.0,82058.0,0.12055382]
[1744269318440,0.243711,82065.0,82061.0,0.012186]
[1744269318641,0.24371,82065.0,82062.0,0.36427182]
[1744269318852,0.243715,82063.0,82062.0,0.12055382]
[1744269322374,0.24371,82065.0,82062.0,0.12055382]
[1744269322557,0.243715,82063.0,82062.0,0.12055382]
[1744269324056,0.2559,82063.0,82046.0,0.290265]
[1744269324261,0.26780786,82066.0,82047.0,0.12055382]
[1744269324262,0.012187,82048.0,82047.0,0.12055382]
[1744269324506,0.243759,82048.0,82047.0,0.26187382]
[1744269325021,0.25059904,82048.0,82047.0,0.26187382]
[1744269325765,0.00684004,82048.0,82047.0,0.51782382]
[1744269326374,0.255916,82058.0,82053.0,0.243742]
[1744269326528,0.243737,82056.0,82054.0,0.12055382]
[1744269326835,0.00688337,82055.0,82054.0,0.36429482]
[1744269327050,0.243736,82056.0,82054.0,0.12055382]
[1744269327259,0.26280757,82055.0,82054.0,0.12055382]
[1744269327646,0.243754,82050.0,82047.0,0.14132]
[1744269327848,0.26283241,82049.0,82048.0,0.26187382]
[1744269328243,0.00688841,82049.0,82048.0,0.26187382]
[1744269328446,0.243755,82050.0,82048.0,0.26187382]
[1744269328643,0.00687866,82049.0,82048.0,0.50563282]
[1744269328899,0.012186,82055.0,82048.0,0.51781982]
[1744269328900,0.243744,82053.0,82048.0,0.51781982]
[1744269329091,0.24375,82052.0,82049.0,0.243753]
[1744269329293,0.012187,82052.0,82049.0,0.12055382]
[1744269329500,0.243753,82050.0,82049.0,0.12055382]
[1744269331103,0.25594,82050.0,82049.0,0.12055382]
[1744269331509,0.25594,82050.0,82045.0,0.4132942]
[1744269331510,0.255953,82046.0,82045.0,0.4132942]
[1744269331709,0.24377,82045.0,82043.0,0.12055382]
[1744269332028,0.243763,82047.0,82044.0,0.12055382]
[1744269332248,0.243768,82045.0,82044.0,0.12055382]
[1744269332436,0.243786,82039.0,82036.0,1.2546]
[1744269332634,0.243786,82039.0,82038.0,0.14132]
[1744269332635,0.012189,82039.0,82038.0,0.14132]
[1744269332810,0.012189,82039.0,82038.0,0.26187382]
[1744269333016,0.243765,82047.0,82040.0,0.012189]
[1744269333217,0.012187,82049.0,82042.0,0.060088]
[1744269333379,0.243757,82049.0,82045.0,0.243765]
[1744269333583,0.24376,82048.0,82046.0,0.12055382]
[1744269333780,0.24376,82048.0,82046.0,0.36431882]
[1744269333982,0.24376,82048.0,82046.0,0.12055382]
[1744269334398,0.243757,82049.0,82046.0,0.36431582]
[1744269334602,0.24376,82048.0,82046.0,0.12055382]
[1744269334798,0.243762,82047.0,82046.0,0.12055382]
[1744269335105,0.243762,82048.0,82046.0,0.12055382]
[1744269335559,0.012187,82050.0,82046.0,0.12055382]
[1744269335737,0.243761,82048.0,82046.0,0.12055382]
[1744269336350,0.243762,82047.0,82046.0,0.12055382]
[1744269336608,0.243761,82048.0,82046.0,0.12055382]
[1744269336821,0.25595,82047.0,82046.0,0.12055382]
[1744269337280,0.25595,82047.0,82046.0,0.11937541]
[1744269338289,0.012187,82051.0,82046.0,0.11937541]
[1744269338489,0.243757,82049.0,82046.0,0.11937541]
[1744269338680,0.012187,82054.0,82046.0,0.13156341]
[1744269339033,0.255906,82062.0,82055.0,0.059886]
[1744269339234,0.243728,82059.0,82056.0,0.12055382]
[1744269339469,0.012185,82064.0,82059.0,0.243726]
[1744269339674,0.012184,82069.0,82061.0,0.243721]
[1744269339675,0.243709,82065.0,82061.0,0.243721]
[1744269339877,0.012184,82069.0,82062.0,0.12055382]
[1744269340052,0.243701,82068.0,82063.0,0.012185]
[1744269340393,0.243701,82068.0,82064.0,0.36426582]
[1744269340519,0.012184,82069.0,82064.0,0.13273882]
[1744269340718,0.243703,82068.0,82064.0,0.13273882]
[1744269340921,0.243705,82067.0,82064.0,0.12055382]
[1744269341143,0.243709,82066.0,82064.0,0.12055382]
[1744269342997,0.243709,82065.0,82064.0,0.12055382]
[1744269344191,0.012185,82062.0,82051.0,0.0455]
[1744269344371,0.012186,82059.0,82058.0,0.14132]
[1744269344545,0.255913,82059.0,82058.0,0.26187382]
[1744269345343,0.255913,82059.0,82058.0,0.12055382]
[1744269345514,0.255913,82059.0,82058.0,0.26183382]
[1744269347498,0.26286569,82059.0,82058.0,0.26183382]
[1744269347934,0.26286569,82059.0,82058.0,0.12055382]
[1744269348342,0.25067969,82059.0,82058.0,0.12055382]
[1744269348798,0.26286569,82059.0,82058.0,0.12055382]
[1744269349028,0.00695269,82059.0,82058.0,0.12055382]
[1744269349968,0.25067969,82059.0,82058.0,0.12055382]
[1744269350197,0.26286569,82059.0,82058.0,0.1433155]
[1744269350887,0.25067969,82059.0,82058.0,0.1433155]
[1744269352680,0.26286569,82059.0,82058.0,0.02276168]
[1744269353102,0.255921,82056.0,82055.0,0.5540142]
[1744269353278,0.255921,82056.0,82055.0,0.67456802]
[1744269353635,0.26291178,82056.0,82055.0,0.67456802]
[1744269356573,0.26291178,82056.0,82055.0,0.26127382]
[1744269357079,0.26291178,82056.0,82055.0,0.12055382]
[1744269360686,0.00699078,82056.0,82055.0,0.37647782]
[1744269361059,8.796e-05,82068.0,82066.0,0.243704]
[1744269361398,0.00692892,82067.0,82066.0,0.36425882]
[1744269362120,0.00692892,82067.0,82066.0,0.12055382]
[1744269362526,0.26281692,82067.0,82066.0,0.12055382]
[1744269362981,0.243722,82061.0,82058.0,0.6570222]
[1744269363180,0.00694353,82060.0,82059.0,0.26127382]
[1744269363357,0.25066753,82060.0,82059.0,0.12055382]
[1744269363789,0.26285353,82060.0,82059.0,0.12055382]
[1744269364216,0.255913,82059.0,82058.0,0.4132942]
[1744269364581,0.26285149,82059.0,82058.0,0.4132942]
[1744269364793,0.00693849,82059.0,82058.0,0.78976402]
[1744269365202,0.01202508,82070.0,82067.0,0.255888]
[1744269365403,0.01202508,82070.0,82067.0,0.37644182]
[1744269365886,0.01202508,82070.0,82067.0,0.36425682]
[1744269366424,0.01202508,82070.0,82067.0,0.12055382]
[1744269366625,0.25597296,82068.0,82067.0,0.12055382]
[1744269366826,8.796e-05,82068.0,82067.0,0.12055382]
[1744269366986,0.24378796,82068.0,82067.0,0.12055382]
[1744269367389,0.25597296,82068.0,82067.0,0.12055382]
[1744269368044,0.25597296,82068.0,82058.0,0.4254802]
[1744269368045,0.255913,82059.0,82058.0,0.4132942]
[1744269368182,0.255913,82059.0,82058.0,0.12055382]
[1744269369399,0.243721,82061.0,82058.0,0.12055382]
[1744269369632,0.255896,82065.0,82059.0,0.12055382]
[1744269369809,8.796e-05,82068.0,82067.0,0.255888]
[1744269370025,8.796e-05,82068.0,82067.0,0.12055382]
[1744269370228,0.255916,82058.0,82056.0,0.0488]
[1744269370378,0.243724,82060.0,82058.0,0.243728]
[1744269370591,0.255921,82056.0,82055.0,0.0459]
[1744269370792,0.012186,82055.0,82051.0,0.24375]
[1744269370997,0.243743,82054.0,82052.0,0.26127382]
[1744269371194,0.012186,82057.0,82052.0,0.50502082]
[1744269371415,0.00695954,82053.0,82052.0,0.50502082]
[1744269371618,0.243727,82059.0,82054.0,0.012187]
[1744269371825,0.255915,82060.0,82055.0,0.36428982]
[1744269372019,0.255913,82060.0,82055.0,0.12055382]
[1744269372353,0.012186,82060.0,82055.0,0.12055382]
[1744269372559,0.243735,82057.0,82055.0,0.12055382]
[1744269372889,0.243735,82056.0,82055.0,0.12055382]
[1744269373090,0.255931,82053.0,82052.0,0.14072]
[1744269373220,0.255931,82053.0,82052.0,0.26127382]
[1744269373564,0.255931,82053.0,82039.0,0.012189]
[1744269373565,0.255962,82043.0,82042.0,0.5540142]
[1744269373764,0.243772,82044.0,82042.0,0.26127382]
[1744269373984,0.243774,82043.0,82042.0,0.14072]
[1744269374224,0.255962,82043.0,82042.0,0.26127382]
[1744269377626,0.27479448,82043.0,82042.0,0.26127382]
[1744269379080,0.27479448,82043.0,82042.0,0.14072]
[1744269380032,0.27479448,82043.0,82036.0,1.2546]
[1744269380033,0.255981,82037.0,82036.0,1.2546]
[1744269380236,0.255981,82037.0,82036.0,1.2546828]
[1744269380407,0.24379,82038.0,82036.0,8.28e-05]
[1744269380619,0.255981,82037.0,82036.0,8.28e-05]
[1744269381016,0.595981,82037.0,82036.0,8.28e-05]
[1744269381955,0.80499281,82037.0,82036.0,8.28e-05]
[1744269383052,0.60499281,82037.0,82036.0,8.28e-05]
[1744269384506,1.00499281,82037.0,82036.0,8.28e-05]
[1744269385814,1.05429281,82037.0,82036.0,8.28e-05]
[1744269386040,1.47830913,82037.0,82036.0,8.28e-05]
[1744269386274,1.44785663,82037.0,82036.0,8.28e-05]
[1744269386987,1.45637417,82037.0,82036.0,8.28e-05]
[1744269387408,1.33582035,82037.0,82036.0,8.28e-05]
[1744269387729,1.32730281,82037.0,82036.0,8.28e-05]
[1744269387937,1.12730281,82037.0,82036.0,8.28e-05]
[1744269388415,1.12830281,82037.0,82036.0,8.28e-05]
[1744269388852,1.05529281,82037.0,82036.0,8.28e-05]
[1744269389081,1.25529281,82037.0,82036.0,8.28e-05]
[1744269389535,1.25629281,82037.0,82036.0,8.28e-05]
[1744269390664,1.20699281,82037.0,82036.0,8.28e-05]
[1744269393415,0.80699281,82037.0,82036.0,8.28e-05]
[1744269393630,0.202,82037.0,82036.0,8.28e-05]
[1744269393912,0.202,82037.0,82036.0,0.12063662]
[1744269394147,0.001,82037.0,82036.0,0.42282062]
[1744269394371,0.01197104,82043.0,82042.0,0.255965]
[1744269394655,0.01197104,82043.0,82042.0,0.37651882]
[1744269394871,0.595945,82049.0,82046.0,0.243764]
[1744269395135,0.012188,82047.0,82042.0,0.12055382]
[1744269395384,0.243766,82046.0,82043.0,0.37651582]
[1744269395813,0.243766,82046.0,82043.0,0.36432782]
[1744269397521,0.243733,82057.0,82054.0,0.012187]
[1744269397793,0.2,82060.0,82059.0,0.243727]
[1744269398042,0.24369,82072.0,82069.0,0.243695]
[1744269398282,0.24369,82072.0,82068.0,0.2437]
[1744269398283,0.255874,82072.0,82068.0,0.2437]
[1744269398532,0.255874,82072.0,82065.0,0.243707]
[1744269398533,0.243694,82070.0,82066.0,0.243704]
[1744269398781,0.255888,82067.0,82062.0,0.243717]
[1744269399016,0.2437,82068.0,82063.0,0.37645282]
[1744269399273,0.255889,82067.0,82063.0,0.12055382]
[1744269399505,0.255889,82067.0,82063.0,0.36426782]
[1744269399752,0.255889,82067.0,82064.0,0.243711]
[1744269399981,0.243708,82066.0,82065.0,0.12055382]
[1744269400260,0.255889,82067.0,82065.0,0.12055382]
[1744269400522,0.24378896,82068.0,82065.0,0.12055382]
[1744269400990,0.24378896,82068.0,82067.0,0.012185]
[1744269400991,8.796e-05,82068.0,82067.0,0.012185]
[1744269401245,8.796e-05,82068.0,82067.0,0.37644182]
[1744269401475,8.796e-05,82068.0,82067.0,0.42334182]
[1744269401978,8.796e-05,82068.0,82067.0,0.56462182]
[1744269402454,8.796e-05,82068.0,82067.0,1.04115687]
[1744269403290,0.0003378,82074.0,82073.0,0.255869]
[1744269403523,0.0003378,82074.0,82073.0,0.80425787]
[1744269403915,0.0003378,82074.0,82073.0,0.67508802]
[1744269404403,0.0003378,82074.0,82073.0,0.68727202]
[1744269409116,0.0003378,82074.0,82073.0,0.93095702]
[1744269410151,0.01727056,82074.0,82073.0,0.67508802]
[1744269410361,0.00508656,82074.0,82073.0,0.67508802]
[1744269410568,0.00508656,82074.0,82073.0,0.93095702]
[1744269410783,0.0003378,82074.0,82073.0,0.93095702]
[1744269410986,0.0003378,82074.0,82073.0,1.04249787]
[1744269412074,0.0003378,82074.0,82073.0,0.90125787]
[1744269412281,0.0003378,82074.0,82073.0,1.04301787]
[1744269416440,0.0003378,82074.0,82073.0,1.06555292]
[1744269420610,0.0003372,82083.0,82082.0,0.25584]
[1744269420611,2e-07,82083.0,82082.0,0.25584]
[1744269420781,2e-07,82083.0,82082.0,1.69251058]
[1744269420981,2e-07,82083.0,82082.0,1.69007467]
[1744269421182,2e-07,82083.0,82082.0,1.71260972]
[1744269421765,2e-07,82083.0,82082.0,1.39692887]
[1744269422007,2e-07,82083.0,82082.0,1.53864887]
[1744269422523,2e-07,82083.0,82082.0,1.78230687]
[1744269422726,0.00490921,82083.0,82082.0,1.53864887]